fUSD/lending_fUSD_20241222
["ID","MTS","AMOUNT","RATE_DAILY","PERIOD"]
[346273332,1734857439823,-500.0,0.00019178,2]
[346273333,1734857439833,-500.0,0.00019178,2]
[346273334,1734857439842,-500.0,0.00019178,2]
[346273335,1734857439852,-500.0,0.00019178,2]
[346273336,1734857439861,-500.0,0.00019178,2]
[346273337,1734857439874,-500.0,0.00019178,2]
[346273338,1734857439884,-500.0,0.00019178,2]
[346273339,1734857439895,-383.73465338,0.00019178,2]
[346273340,1734857439904,-500.0,0.00019178,2]
[346273341,1734857439915,-500.0,0.00019178,2]
[346273342,1734857439927,-500.0,0.00019178,2]
[346273343,1734857439936,-500.0,0.00019178,2]
[346273344,1734857439946,-500.0,0.00019178,2]
[346273345,1734857439955,-500.0,0.00019178,2]
[346273346,1734857439966,-500.0,0.00019178,2]
[346273347,1734857439976,-500.0,0.00019178,2]
[346273348,1734857439985,-500.0,0.00019178,2]
[346273349,1734857439995,-500.0,0.00019178,2]
[346273350,1734857440005,-500.0,0.00019178,2]
[346273351,1734857440014,-500.0,0.00019178,2]
[346273352,1734857440023,-500.67860864,0.00019178,2]
[346273353,1734857440033,-500.0,0.00019178,2]
[346273354,1734857440042,-500.0,0.00019178,2]
[346273355,1734857440051,-637.73,0.00019178,2]
[346273356,1734857440060,-500.61279199,0.00019178,2]
[346273357,1734857440069,-506.12383212,0.00019178,2]
[346273358,1734857440079,-500.0,0.00019178,2]
[346273359,1734857440088,-500.0,0.00019178,2]
[346273360,1734857440097,-500.0,0.00019178,2]
[346273361,1734857440106,-500.0,0.00019178,2]
[346273362,1734857440116,-500.0,0.00019178,2]
[346273363,1734857440125,-500.0,0.00019178,2]
[346273364,1734857440135,-199.97101509,0.00019178,2]
[346273365,1734857440144,-500.0,0.00019178,2]
[346273366,1734857440153,-500.0,0.00019178,2]
[346273367,1734857440163,-500.0,0.00019178,2]
[346273368,1734857440172,-502.99771732,0.00019178,2]
[346273369,1734857440181,-500.0,0.00019178,2]
[346273370,1734857440191,-500.0,0.00019178,2]
[346273371,1734857440200,-609.5743587,0.00019178,2]
[346273372,1734857440209,-500.0,0.00019178,2]
[346273373,1734857440220,-500.0,0.00019178,2]
[346273374,1734857440229,-500.0,0.00019178,2]
[346273375,1734857440238,-500.0,0.00019178,2]
[346273378,1734857440248,-500.0,0.00019178,2]
[346273379,1734857440257,-500.0,0.00019178,2]
[346273380,1734857440267,-184.51749913,0.00019178,2]
[346273381,1734857440275,-500.0,0.00019178,2]
[346273382,1734857440284,-500.0,0.00019178,2]
[346273383,1734857440293,-500.87531381,0.00019178,2]
[346273384,1734857440303,-500.0,0.00019178,2]
[346273385,1734857440313,-500.0,0.00019178,2]
[346273386,1734857440325,-500.0,0.00019178,2]
[346273387,1734857440334,-500.0,0.00019178,2]
[346273388,1734857440343,-500.0,0.00019178,2]
[346273389,1734857440352,-500.0,0.00019178,2]
[346273390,1734857440362,-500.0,0.00019178,2]
[346273391,1734857440371,-500.0,0.00019178,2]
[346273392,1734857440380,-500.0,0.00019178,2]
[346273393,1734857440389,-500.0,0.00019178,2]
[346273394,1734857440399,-500.91050755,0.00019178,2]
[346273395,1734857440408,-429.05092527,0.00019178,2]
[346273396,1734857440417,-500.0,0.00019178,2]
[346273397,1734857440425,-500.0,0.00019178,2]
[346273398,1734857440435,-500.0,0.00019178,2]
[346273399,1734857440444,-500.0,0.00019178,2]
[346273400,1734857440453,-500.0,0.00019178,2]
[346273401,1734857440462,-500.0,0.00019178,2]
[346273402,1734857440471,-502.19187961,0.00019178,2]
[346273403,1734857440481,-500.0,0.00019178,2]
[346273404,1734857440490,-500.0,0.00019178,2]
[346273405,1734857440499,-500.0,0.00019178,2]
[346273406,1734857440509,-603.81780134,0.00019178,2]
[346273407,1734857440518,-252.49156168,0.00019178,2]
[346273408,1734857440527,-500.0,0.00019178,2]
[346273409,1734857440537,-500.0,0.00019178,2]
[346273410,1734857440546,-503.09251165,0.00019178,2]
[346273411,1734857440555,-500.0,0.00019178,2]
[346273412,1734857440564,-500.0,0.00019178,2]
[346273413,1734857440573,-500.0,0.00019178,2]
[346273414,1734857440582,-500.0,0.00019178,2]
[346273415,1734857440591,-500.0,0.00019178,2]
[346273416,1734857440600,-500.0,0.00019178,2]
[346273417,1734857440609,-500.0,0.00019178,2]
[346273418,1734857440618,-500.0,0.00019178,2]
[346273419,1734857440627,-590.75,0.00019178,2]
[346273420,1734857440636,-500.0,0.00019178,2]
[346273421,1734857440645,-500.0,0.00019178,2]
[346273422,1734857440655,-500.0,0.00019178,2]
[346273423,1734857440663,-503.82899292,0.00019178,2]
[346273424,1734857440672,-500.0,0.00019178,2]
[346273425,1734857440683,-934.02,0.00019178,2]
[346273426,1734857440695,-504.41939269,0.00019178,2]
[346273427,1734857440706,-500.0,0.00019178,2]
[346273428,1734857440716,-500.0,0.00019178,2]
[346273429,1734857440726,-500.0,0.00019178,2]
[346273430,1734857440735,-500.0,0.00019178,2]
[346273431,1734857440744,-503.31005371,0.00019178,2]
[346273432,1734857440754,-1203.18,0.00019178,2]
[346273433,1734857440763,-506.02459979,0.00019178,2]
[346273434,1734857440772,-500.0,0.00019178,2]
[346273435,1734857440781,-505.12358403,0.00019178,2]
[346273436,1734857440790,-500.0,0.00019178,2]
[346273437,1734857440799,-500.0,0.00019178,2]
[346273438,1734857440808,-397.1114101,0.00019178,2]
[346273439,1734857440817,-500.0,0.00019178,2]
[346273440,1734857440826,-500.0,0.00019178,2]
[346273441,1734857440835,-500.0,0.00019178,2]
[346273442,1734857440843,-502.95373048,0.00019178,2]
[346273443,1734857440853,-500.0,0.00019178,2]
[346273444,1734857440863,-500.0,0.00019178,2]
[346273445,1734857440874,-500.0,0.00019178,2]
[346273446,1734857440884,-500.0,0.00019178,2]
[346273447,1734857440896,-504.94644902,0.00019178,2]
[346273448,1734857440907,-500.0,0.00019178,2]
[346273449,1734857440917,-500.0,0.00019178,2]
[346273450,1734857440927,-500.0,0.00019178,2]
[346273451,1734857440937,-500.0,0.00019178,2]
[346273452,1734857440947,-502.51231013,0.00019178,2]
[346273453,1734857440956,-500.0,0.00019178,2]
[346273454,1734857440966,-501.72067959,0.00019178,2]
[346273455,1734857440975,-507.24,0.00019178,2]
[346273456,1734857440987,-500.0,0.00019178,2]
[346273457,1734857440997,-500.0,0.00019178,2]
[346273458,1734857441006,-500.00352908,0.00019178,2]
[346273459,1734857441016,-500.0,0.00019178,2]
[346273460,1734857441026,-500.0,0.00019178,2]
[346273461,1734857441038,-501.20285188,0.00019178,2]
[346273462,1734857441049,-500.0,0.00019178,2]
[346273463,1734857441059,-500.0,0.00019178,2]
[346273464,1734857441067,-563.85,0.00019178,2]
[346273465,1734857441077,-500.0,0.00019178,2]
[346273466,1734857441087,-508.67291405,0.00019178,2]
[346273467,1734857441097,-500.0,0.00019178,2]
[346273468,1734857441106,-500.0,0.00019178,2]
[346273469,1734857441115,-500.0,0.00019178,2]
[346273470,1734857441125,-500.0,0.00019178,2]
[346273471,1734857441136,-500.0,0.00019178,2]
[346273472,1734857441145,-500.0,0.00019178,2]
[346273473,1734857441154,-500.0,0.00019178,2]
[346273474,1734857441163,-500.0,0.00019178,2]
[346273475,1734857441171,-500.0,0.00019178,2]
[346273476,1734857441180,-505.2525592,0.00019178,2]
[346273477,1734857441189,-500.0,0.00019178,2]
[346273478,1734857441198,-500.0,0.00019178,2]
[346273479,1734857441207,-500.0,0.00019178,2]
[346273480,1734857441216,-501.25661253,0.00019178,2]
[346273481,1734857441225,-500.0,0.00019178,2]
[346273482,1734857441235,-500.61321853,0.00019178,2]
[346273483,1734857441244,-500.0,0.00019178,2]
[346273484,1734857441253,-500.0,0.00019178,2]
[346273485,1734857441262,-500.0,0.00019178,2]
[346273486,1734857441271,-500.81674877,0.00019178,2]
[346273487,1734857441280,-500.0,0.00019178,2]
[346273488,1734857441288,-500.0,0.00019178,2]
[346273489,1734857441297,-506.97266176,0.00019178,2]
[346273490,1734857441306,-500.0,0.00019178,2]
[346273491,1734857441318,-500.0,0.00019178,2]
[346273492,1734857441327,-500.0,0.00019178,2]
[346273493,1734857441337,-500.0,0.00019178,2]
[346273494,1734857441347,-500.0,0.00019178,2]
[346273495,1734857441356,-500.0,0.00019178,2]
[346273496,1734857441367,-500.0,0.00019178,2]
[346273497,1734857441375,-500.0,0.00019178,2]
[346273498,1734857441386,-502.2183248,0.00019178,2]
[346273499,1734857441399,-500.0,0.00019178,2]
[346273500,1734857441408,-500.0,0.00019178,2]
[346273501,1734857441417,-502.04580981,0.00019178,2]
[346273502,1734857441426,-937.21,0.00019178,2]
[346273503,1734857441435,-500.0,0.00019178,2]
[346273504,1734857441444,-500.0,0.00019178,2]
[346273505,1734857441453,-500.0,0.00019178,2]
[346273506,1734857441463,-500.0,0.00019178,2]
[346273507,1734857441472,-500.0,0.00019178,2]
[346273508,1734857441481,-501.17042854,0.00019178,2]
[346273509,1734857441490,-504.84159766,0.00019178,2]
[346273510,1734857441499,-500.0,0.00019178,2]
[346273511,1734857441508,-500.0,0.00019178,2]
[346273512,1734857441517,-500.0,0.00019178,2]
[346273513,1734857441526,-500.0,0.00019178,2]
[346273514,1734857441535,-500.0,0.00019178,2]
[346273515,1734857441544,-500.0,0.00019178,2]
[346273516,1734857441553,-500.0,0.00019178,2]
[346273517,1734857441562,-656.43,0.00019178,2]
[346273518,1734857441571,-500.0,0.00019178,2]
[346273519,1734857441579,-500.0,0.00019178,2]
[346273520,1734857441588,-500.0,0.00019178,2]
[346273521,1734857441597,-1347.77,0.00019178,2]
[346273522,1734857441606,-500.0,0.00019178,2]
[346273523,1734857441615,-500.0,0.00019178,2]
[346273524,1734857441624,-500.0,0.00019178,2]
[346273525,1734857441633,-500.0,0.00019178,2]
[346273526,1734857441642,-500.0,0.00019178,2]
[346273527,1734857441650,-677.07,0.00019178,2]
[346273528,1734857441659,-500.0,0.00019178,2]
[346273529,1734857441668,-500.0,0.00019178,2]
[346273530,1734857441677,-500.0,0.00019178,2]
[346273531,1734857441686,-500.0,0.00019178,2]
[346273532,1734857441695,-500.0,0.00019178,2]
[346273533,1734857441704,-500.0,0.00019178,2]
[346273534,1734857441713,-500.0,0.00019178,2]
[346273535,1734857441721,-500.0,0.00019178,2]
[346273536,1734857441730,-500.0,0.00019178,2]
[346273537,1734857441739,-500.0,0.00019178,2]
[346273538,1734857441748,-500.0,0.00019178,2]
[346273539,1734857441757,-500.0,0.00019178,2]
[346273540,1734857441766,-500.0,0.00019178,2]
[346273541,1734857441774,-500.0,0.00019178,2]
[346273542,1734857441784,-500.0,0.00019178,2]
[346273543,1734857441796,-506.67944945,0.00019178,2]
[346273544,1734857441806,-506.66006883,0.00019178,2]
[346273545,1734857441815,-500.0,0.00019178,2]
[346273546,1734857441824,-526.68776141,0.00019178,2]
[346273547,1734857441834,-286.28580557,0.00019178,2]
[346273548,1734857441843,-522.27529047,0.00019178,2]
[346273549,1734857441852,-500.0,0.00019178,2]
[346273550,1734857441862,-500.0,0.00019178,2]
[346273551,1734857441870,-500.0,0.00019178,2]
[346273552,1734857441879,-500.0,0.00019178,2]
[346273553,1734857441888,-500.0,0.00019178,2]
[346273554,1734857441897,-500.0,0.00019178,2]
[346273555,1734857441906,-500.0,0.00019178,2]
[346273556,1734857441915,-500.0,0.00019178,2]
[346273557,1734857441927,-500.0,0.00019178,2]
[346273558,1734857441938,-500.0,0.00019178,2]
[346273559,1734857441950,-500.0,0.00019178,2]
[346273560,1734857441960,-500.0,0.00019178,2]
[346273561,1734857441970,-500.0,0.00019178,2]
[346273562,1734857441979,-500.0,0.00019178,2]
[346273563,1734857441989,-500.0,0.00019178,2]
[346273564,1734857441999,-500.0,0.00019178,2]
[346273565,1734857442009,-500.0,0.00019178,2]
[346273566,1734857442018,-501.81519913,0.00019178,2]
[346273567,1734857442029,-500.0,0.00019178,2]
[346273568,1734857442039,-500.0,0.00019178,2]
[346273569,1734857442048,-500.0,0.00019178,2]
[346273570,1734857442058,-500.0,0.00019178,2]
[346273571,1734857442068,-505.75914912,0.00019178,2]
[346273572,1734857442079,-500.0,0.00019178,2]
[346273573,1734857442088,-500.35381653,0.00019178,2]
[346273574,1734857442098,-500.0,0.00019178,2]
[346273575,1734857442107,-543.18,0.00019178,2]
[346273576,1734857442118,-501.34093506,0.00019178,2]
[346273577,1734857442128,-500.0,0.00019178,2]
[346273578,1734857442139,-500.0,0.00019178,2]
[346273579,1734857442150,-500.0,0.00019178,2]
[346273580,1734857442160,-500.0,0.00019178,2]
[346273581,1734857442170,-516.70579597,0.00019178,2]
[346273582,1734857442181,-500.0,0.00019178,2]
[346273583,1734857442192,-500.0,0.00019178,2]
[346273584,1734857442202,-500.0,0.00019178,2]
[346273585,1734857442213,-500.0,0.00019178,2]
[346273586,1734857442222,-500.0,0.00019178,2]
[346273587,1734857442232,-500.0,0.00019178,2]
[346273588,1734857442241,-500.0,0.00019178,2]
[346273589,1734857442251,-500.0,0.00019178,2]
[346273590,1734857442259,-721.15,0.00019178,2]
[346273591,1734857442269,-500.0,0.00019178,2]
[346273592,1734857442278,-500.0,0.00019178,2]
[346273593,1734857442288,-500.0,0.00019178,2]
[346273594,1734857442298,-500.0,0.00019178,2]
[346273595,1734857442307,-500.0,0.00019178,2]
[346273596,1734857442320,-503.84615752,0.00019178,2]
[346273597,1734857442329,-500.0,0.00019178,2]
[346273598,1734857442339,-500.0,0.00019178,2]
[346273599,1734857442348,-500.0,0.00019178,2]
[346273601,1734857442359,-500.0,0.00019178,2]
[346273603,1734857442368,-501.42983515,0.00019178,2]
[346273605,1734857442378,-503.04086743,0.00019178,2]
[346273606,1734857442388,-500.0,0.00019178,2]
[346273607,1734857442397,-503.65636631,0.00019178,2]
[346273608,1734857442406,-500.0,0.00019178,2]
[346273609,1734857442415,-500.0,0.00019178,2]
[346273610,1734857442424,-500.0,0.00019178,2]
[346273611,1734857442433,-500.0,0.00019178,2]
[346273612,1734857442442,-500.0,0.00019178,2]
[346273613,1734857442451,-500.0,0.00019178,2]
[346273614,1734857442460,-502.01535844,0.00019178,2]
[346273615,1734857442473,-502.75249162,0.00019178,2]
[346273616,1734857442482,-314.29246268,0.00019178,2]
[346273617,1734857442491,-500.0,0.00019178,2]
[346273619,1734857442500,-502.21908684,0.00019178,2]
[346273621,1734857442509,-502.08182068,0.00019178,2]
[346273623,1734857442519,-504.70799029,0.00019178,2]
[346273625,1734857442527,-500.0,0.00019178,2]
[346273627,1734857442537,-500.0,0.00019178,2]
[346273628,1734857442546,-506.50018994,0.00019178,2]
[346273631,1734857442702,-500.0,0.00019178,2]
[346273632,1734857442712,-500.0,0.00019178,2]
[346273633,1734857442722,-500.0,0.00019178,2]
[346273634,1734857442731,-505.31149653,0.00019178,2]
[346273635,1734857442740,-500.0,0.00019178,2]
[346273636,1734857442749,-500.0,0.00019178,2]
[346273637,1734857442758,-500.0,0.00019178,2]
[346273638,1734857442767,-500.0,0.00019178,2]
[346273639,1734857442777,-521.13948146,0.00019178,2]
[346273640,1734857442787,-500.0,0.00019178,2]
[346273641,1734857442798,-500.0,0.00019178,2]
[346273642,1734857442808,-500.0,0.00019178,2]
[346273643,1734857442819,-507.14588018,0.00019178,2]
[346273644,1734857442829,-500.0,0.00019178,2]
[346273645,1734857442838,-500.0,0.00019178,2]
[346273646,1734857442848,-500.0,0.00019178,2]
[346273647,1734857442857,-500.0,0.00019178,2]
[346273648,1734857442868,-500.0,0.00019178,2]
[346273649,1734857442878,-500.0,0.00019178,2]
[346273650,1734857442888,-500.0,0.00019178,2]
[346273651,1734857442899,-500.0,0.00019178,2]
[346273652,1734857442908,-500.0,0.00019178,2]
[346273653,1734857442918,-500.0,0.00019178,2]
[346273654,1734857442928,-500.0,0.00019178,2]
[346273656,1734857442937,-500.0,0.00019178,2]
[346273657,1734857442947,-500.0,0.00019178,2]
[346273658,1734857442956,-500.0,0.00019178,2]
[346273659,1734857442966,-651.7,0.00019178,2]
[346273660,1734857442975,-634.21,0.00019178,2]
[346273661,1734857442984,-500.96171726,0.00019178,2]
[346273662,1734857442993,-500.0,0.00019178,2]
[346273663,1734857443002,-500.0,0.00019178,2]
[346273664,1734857443011,-1222.26,0.00019178,2]
[346273665,1734857443020,-500.0,0.00019178,2]
[346273666,1734857443030,-504.6308568,0.00019178,2]
[346273667,1734857443039,-502.35240624,0.00019178,2]
[346273668,1734857443048,-500.0,0.00019178,2]
[346273669,1734857443057,-514.0491422,0.00019178,2]
[346273670,1734857443066,-461.22859642,0.00019178,2]
[346273671,1734857443075,-3736.49,0.00019178,2]
[346273672,1734857443084,-509.55216099,0.00019178,2]
[346273673,1734857443093,-1271.88,0.00019178,2]
[346273674,1734857443103,-500.0,0.00019178,2]
[346273675,1734857443112,-503.23705959,0.00019178,2]
[346273676,1734857443121,-500.0,0.00019178,2]
[346273677,1734857443130,-502.73846563,0.00019178,2]
[346273678,1734857443139,-790.01,0.00019178,2]
[346273679,1734857443148,-170.41452621,0.00019178,2]
[346273680,1734857443157,-509.36134225,0.00019178,2]
[346273681,1734857443166,-500.0,0.00019178,2]
[346273682,1734857443175,-500.0,0.00019178,2]
[346273683,1734857443184,-504.66640903,0.00019178,2]
[346273684,1734857443193,-500.0,0.00019178,2]
[346273685,1734857443202,-500.0,0.00019178,2]
[346273686,1734857443211,-500.0,0.00019178,2]
[346273687,1734857443222,-503.12705481,0.00019178,2]
[346273688,1734857443231,-728.79,0.00019178,2]
[346273689,1734857443240,-500.0,0.00019178,2]
[346273690,1734857443249,-500.0,0.00019178,2]
[346273691,1734857443258,-500.0,0.00019178,2]
[346273692,1734857443267,-500.0,0.00019178,2]
[346273693,1734857443276,-503.54873813,0.00019178,2]
[346273694,1734857443285,-500.0,0.00019178,2]
[346273695,1734857443295,-500.0,0.00019178,2]
[346273696,1734857443303,-500.0,0.00019178,2]
[346273697,1734857443313,-1167.08,0.00019178,2]
[346273698,1734857443326,-1214.41,0.00019178,2]
[346273699,1734857443335,-968.45,0.00019178,2]
[346273700,1734857443345,-500.0,0.00019178,2]
[346273701,1734857443355,-500.0,0.00019178,2]
[346273702,1734857443365,-500.0,0.00019178,2]
[346273703,1734857443374,-500.0,0.00019178,2]
[346273704,1734857443383,-500.0,0.00019178,2]
[346273705,1734857443393,-510.9287454,0.00019178,2]
[346273706,1734857443403,-558.60648965,0.00019178,2]
[346273707,1734857443413,-567.82,0.00019178,2]
[346273708,1734857443421,-993.2,0.00019178,2]
[346273709,1734857443432,-500.0,0.00019178,2]
[346273710,1734857443441,-830.47,0.00019178,2]
[346273711,1734857443450,-500.0,0.00019178,2]
[346273712,1734857443460,-500.0,0.00019178,2]
[346273713,1734857443470,-500.0,0.00019178,2]
[346273714,1734857443479,-500.0,0.00019178,2]
[346273715,1734857443489,-500.0,0.00019178,2]
[346273716,1734857443499,-500.0,0.00019178,2]
[346273717,1734857443509,-503.04656669,0.00019178,2]
[346273718,1734857443518,-500.0,0.00019178,2]
[346273719,1734857443529,-3984.51,0.00019178,2]
[346273720,1734857443540,-799.01,0.00019178,2]
[346273721,1734857443549,-500.0,0.00019178,2]
[346273722,1734857443560,-500.0,0.00019178,2]
[346273723,1734857443570,-500.0,0.00019178,2]
[346273724,1734857443579,-500.0,0.00019178,2]
[346273725,1734857443588,-500.0,0.00019178,2]
[346273726,1734857443598,-502.6787425,0.00019178,2]
[346273727,1734857443607,-500.0,0.00019178,2]
[346273728,1734857443617,-500.0,0.00019178,2]
[346273729,1734857443626,-503.44542356,0.00019178,2]
[346273730,1734857443636,-500.0,0.00019178,2]
[346273731,1734857443645,-502.44047225,0.00019178,2]
[346273732,1734857443654,-500.0,0.00019178,2]
[346273733,1734857443663,-500.0,0.00019178,2]
[346273734,1734857443672,-500.0,0.00019178,2]
[346273735,1734857443682,-517.73221859,0.00019178,2]
[346273736,1734857443692,-900.65,0.00019178,2]
[346273737,1734857443701,-500.0,0.00019178,2]
[346273738,1734857443710,-500.0,0.00019178,2]
[346273739,1734857443719,-500.0,0.00019178,2]
[346273740,1734857443728,-500.0,0.00019178,2]
[346273741,1734857443737,-500.0,0.00019178,2]
[346273742,1734857443746,-500.0,0.00019178,2]
[346273743,1734857443755,-505.80052617,0.00019178,2]
[346273744,1734857443764,-500.0,0.00019178,2]
[346273745,1734857443774,-509.29894969,0.00019178,2]
[346273746,1734857443783,-502.31251088,0.00019178,2]
[346273747,1734857443795,-500.0,0.00019178,2]
[346273748,1734857443805,-500.0,0.00019178,2]
[346273749,1734857443815,-1907.05,0.00019178,2]
[346273750,1734857443825,-500.0,0.00019178,2]
[346273751,1734857443837,-500.52705555,0.00019178,2]
[346273752,1734857443848,-889.19,0.00019178,2]
[346273753,1734857443857,-500.0,0.00019178,2]
[346273754,1734857443867,-500.0,0.00019178,2]
[346273755,1734857443878,-200.0,0.00019178,2]
[346273756,1734857443887,-500.0,0.00019178,2]
[346273757,1734857443898,-500.0,0.00019178,2]
[346273758,1734857443909,-500.0,0.00019178,2]
[346273759,1734857443919,-503.60051447,0.00019178,2]
[346273760,1734857443930,-500.0,0.00019178,2]
[346273761,1734857443942,-1614.37,0.00019178,2]
[346273762,1734857443952,-502.33681552,0.00019178,2]
[346273763,1734857443964,-500.0,0.00019178,2]
[346273764,1734857443973,-500.0,0.00019178,2]
[346273765,1734857443984,-500.0,0.00019178,2]
[346273766,1734857443995,-613.03,0.00019178,2]
[346273767,1734857444004,-500.0,0.00019178,2]
[346273768,1734857444014,-151.86271537,0.00019178,2]
[346273769,1734857444025,-506.47620116,0.00019178,2]
[346273770,1734857444037,-500.0,0.00019178,2]
[346273771,1734857444047,-500.0,0.00019178,2]
[346273772,1734857444057,-500.0,0.00019178,2]
[346273773,1734857444066,-725.97,0.00019178,2]
[346273774,1734857444075,-500.0,0.00019178,2]
[346273775,1734857444084,-500.0,0.00019178,2]
[346273776,1734857444093,-1462.4,0.00019178,2]
[346273777,1734857444103,-501.77076286,0.00019178,2]
[346273778,1734857444111,-1635.13,0.00019178,2]
[346273779,1734857444121,-500.0,0.00019178,2]
[346273780,1734857444130,-500.0,0.00019178,2]
[346273781,1734857444139,-500.0,0.00019178,2]
[346273782,1734857444147,-500.0,0.00019178,2]
[346273783,1734857444157,-815.6,0.00019178,2]
[346273784,1734857444166,-500.0,0.00019178,2]
[346273785,1734857444175,-505.22363502,0.00019178,2]
[346273786,1734857444184,-503.4112919,0.00019178,2]
[346273787,1734857444195,-500.0,0.00019178,2]
[346273788,1734857444205,-500.0,0.00019178,2]
[346273789,1734857444216,-602.09340289,0.00019178,2]
[346273790,1734857444226,-11492.46,0.00019178,2]
[346273791,1734857444234,-502.37132887,0.00019178,2]
[346273792,1734857444245,-2300.47,0.00019178,2]
[346273793,1734857444254,-500.0,0.00019178,2]
[346273794,1734857444263,-500.0,0.00019178,2]
[346273795,1734857444271,-504.72503087,0.00019178,2]
[346273796,1734857444280,-500.0,0.00019178,2]
[346273797,1734857444289,-500.0,0.00019178,2]
[346273798,1734857444299,-500.0,0.00019178,2]
[346273799,1734857444307,-500.0,0.00019178,2]
[346273800,1734857444319,-502.98620154,0.00019178,2]
[346273801,1734857444327,-501.51685429,0.00019178,2]
[346273802,1734857444336,-500.0,0.00019178,2]
[346273803,1734857444345,-500.0,0.00019178,2]
[346273804,1734857444354,-500.0,0.00019178,2]
[346273805,1734857444364,-500.0,0.00019178,2]
[346273806,1734857444373,-500.0,0.00019178,2]
[346273807,1734857444382,-665.35,0.00019178,2]
[346273808,1734857444390,-500.0,0.00019178,2]
[346273809,1734857444400,-1390.4,0.00019178,2]
[346273810,1734857444409,-500.0,0.00019178,2]
[346273811,1734857444418,-501.09976344,0.00019178,2]
[346273812,1734857444427,-236.64498975,0.00019178,2]
[346273813,1734857444436,-500.0,0.00019178,2]
[346273814,1734857444445,-500.0,0.00019178,2]
[346273815,1734857444454,-500.0,0.00019178,2]
[346273816,1734857444463,-504.03147038,0.00019178,2]
[346273817,1734857444472,-500.0,0.00019178,2]
[346273818,1734857444481,-1261.96,0.00019178,2]
[346273819,1734857444490,-1821.13,0.00019178,2]
[346273820,1734857444499,-3114.55,0.00019178,2]
[346273821,1734857444508,-500.0,0.00019178,2]
[346273822,1734857444517,-554.93319425,0.00019178,2]
[346273823,1734857444526,-500.0,0.00019178,2]
[346273824,1734857444535,-500.0,0.00019178,2]
[346273825,1734857444544,-500.0,0.00019178,2]
[346273826,1734857444553,-500.0,0.00019178,2]
[346273827,1734857444562,-500.0,0.00019178,2]
[346273828,1734857444571,-849.44,0.00019178,2]
[346273829,1734857444580,-500.0,0.00019178,2]
[346273830,1734857444589,-1306.46,0.00019178,2]
[346273831,1734857444598,-556.95,0.00019178,2]
[346273832,1734857444607,-872.84,0.00019178,2]
[346273833,1734857444616,-944.58,0.00019178,2]
[346273834,1734857444625,-500.0,0.00019178,2]
[346273835,1734857444634,-500.0,0.00019178,2]
[346273836,1734857444643,-500.0,0.00019178,2]
[346273837,1734857444652,-500.0,0.00019178,2]
[346273838,1734857444661,-628.29,0.00019178,2]
[346273839,1734857444670,-500.0,0.00019178,2]
[346273840,1734857444680,-502.20307878,0.00019178,2]
[346273841,1734857444690,-500.0,0.00019178,2]
[346273842,1734857444699,-500.0,0.00019178,2]
[346273843,1734857444708,-500.0,0.00019178,2]
[346273844,1734857444718,-980.06,0.00019178,2]